fUSD/lending_fUSD_20260122
["ID","MTS","AMOUNT","RATE_DAILY","PERIOD"]
[403039768,1769094682240,-500.0,0.00041643,60]
[403039769,1769094682249,-500.0,0.00041643,60]
[403039770,1769094682258,-682.39,0.00041643,60]
[403039771,1769094682267,-500.0,0.00041643,60]
[403039772,1769094682276,-515.88,0.00041643,60]
[403039773,1769094682285,-500.0,0.00041643,60]
[403039774,1769094682294,-548.49,0.00041643,60]
[403039775,1769094682303,-20958.29,0.00041643,60]
[403039776,1769094682313,-552.42629497,0.00041643,60]
[403039777,1769094682322,-500.0,0.00041643,60]
[403039778,1769094682331,-421.95010122,0.00041643,60]
[403039779,1769094682339,-500.0,0.00041643,60]
[403039780,1769094682348,-604.9,0.00041643,60]
[403039781,1769094682357,-500.0,0.00041643,60]
[403039782,1769094682366,-500.0,0.00041643,60]
[403039783,1769094682375,-583.63276503,0.00041643,60]
[403039784,1769094682384,-500.0,0.00041643,2]
[403039785,1769094682393,-500.0,0.00041643,60]
[403039786,1769094682403,-500.0,0.00041643,60]
[403039787,1769094682412,-500.0,0.00041643,60]
[403039788,1769094682420,-500.0,0.00041643,60]
[403039789,1769094682429,-500.0,0.00041643,60]
[403039790,1769094682439,-211.950569,0.00041643,120]
[403039791,1769094682448,-541.14,0.00041643,60]
[403039792,1769094682456,-500.0,0.00041643,60]
[403039793,1769094682466,-831.84,0.00041643,60]
[403039794,1769094682475,-749.36,0.00041643,60]
[403039795,1769094682484,-519.46,0.00041643,60]
[403039796,1769094682493,-500.0,0.00041643,60]
[403039797,1769094682502,-500.0,0.00041643,60]
[403039798,1769094682511,-500.0,0.00041643,60]
[403039799,1769094682519,-151.0,0.00041643,120]
[403039800,1769094682528,-525.28,0.00041643,60]
[403039801,1769094682537,-500.0,0.00041643,60]
[403039802,1769094682547,-151.0,0.00041643,120]
[403039803,1769094682557,-500.0,0.00041643,60]
[403039804,1769094682567,-503.99,0.00041643,60]
[403039805,1769094682577,-529.28,0.00041643,60]
[403039806,1769094682587,-151.0,0.00041643,120]
[403039807,1769094682596,-151.0,0.00041643,120]
[403039808,1769094682605,-533.46743406,0.00041643,60]
[403039809,1769094682615,-225.102097,0.00041643,120]
[403039810,1769094682625,-500.0,0.00041643,60]
[403039811,1769094682635,-500.0,0.00041643,60]
[403039812,1769094682644,-575.03,0.00041643,60]
[403039813,1769094682653,-151.0,0.00041643,120]
[403039814,1769094682663,-500.0,0.00041643,60]
[403039815,1769094682672,-500.0,0.00041643,60]
[403039816,1769094682681,-898.07,0.00041643,60]
[403039817,1769094682691,-500.0,0.00041643,60]
[403039818,1769094682700,-500.0,0.00041643,60]
[403039819,1769094682709,-500.0,0.00041643,60]
[403039820,1769094682719,-500.0,0.00041643,60]
[403039821,1769094682728,-500.0,0.00041643,60]
[403039822,1769094682739,-500.0,0.00041643,60]
[403039823,1769094682748,-578.41,0.00041643,60]
[403039824,1769094682758,-500.0,0.00041643,60]
[403039825,1769094682767,-500.0,0.00041643,60]
[403039826,1769094682777,-500.0,0.00041643,60]
[403039827,1769094682786,-642.85,0.00041643,60]
[403039828,1769094682796,-500.0,0.00041643,60]
[403039829,1769094682805,-500.0,0.00041643,60]
[403039830,1769094682814,-500.0,0.00041643,60]
[403039831,1769094682824,-500.0,0.00041643,60]
[403039832,1769094682833,-500.0,0.00041643,60]
[403039833,1769094682843,-500.0,0.00041643,60]
[403039834,1769094682852,-446.45640627,0.00041643,60]
[403039835,1769094682862,-500.0,0.00041643,60]
[403039836,1769094682872,-500.0,0.00041643,2]
[403039837,1769094682881,-500.0,0.00041643,60]
[403039838,1769094682891,-500.0,0.00041643,60]
[403039839,1769094682903,-500.0,0.00041643,60]
[403039840,1769094682913,-151.0,0.00041643,120]
[403039841,1769094682922,-500.0,0.00041643,60]
[403039842,1769094682932,-500.0,0.00041643,60]
[403039843,1769094682943,-500.0,0.00041643,60]
[403039844,1769094682952,-500.0,0.00041643,60]
[403039845,1769094682962,-151.0,0.00041643,120]
[403039846,1769094682972,-580.01,0.00041643,60]
[403039847,1769094682982,-500.0,0.00041643,60]
[403039848,1769094682991,-265.669609,0.00041643,120]
[403039849,1769094683001,-500.0,0.00041643,60]
[403039850,1769094683012,-920.19,0.00041643,60]
[403039851,1769094683022,-500.0,0.00041643,60]
[403039852,1769094683032,-265.669609,0.00041643,120]
[403039853,1769094683048,-605.61,0.00041643,60]
[403039854,1769094683064,-500.0,0.00041643,60]
[403039855,1769094683074,-500.0,0.00041643,60]
[403039856,1769094683085,-265.669609,0.00041643,120]
[403039857,1769094683095,-500.0,0.00041643,60]
[403039858,1769094683106,-500.0,0.00041643,60]
[403039859,1769094683116,-539.34,0.00041643,60]
[403039860,1769094683126,-265.669609,0.00041643,120]
[403039861,1769094683137,-667.3163,0.00041643,120]
[403039862,1769094683147,-508.21125317,0.00041643,60]
[403039863,1769094683158,-500.0,0.00041643,60]
[403039864,1769094683168,-667.3163,0.00041643,120]
[403039865,1769094683179,-500.0,0.00041643,60]
[403039866,1769094683189,-500.0,0.00041643,60]
[403039867,1769094683200,-529.14,0.00041643,60]
[403039868,1769094683211,-590.76,0.00041643,60]
[403039869,1769094683225,-500.0,0.00041643,60]
[403039870,1769094683235,-667.3163,0.00041643,120]
[403039871,1769094683245,-513.75,0.00041643,60]
[403039872,1769094683255,-151.000012,0.00041643,120]
[403039873,1769094683265,-667.3163,0.00041643,120]
[403039874,1769094683275,-151.0,0.00041643,120]
[403039875,1769094683285,-162.347316,0.00041643,120]
[403039876,1769094683296,-500.0,0.00041643,60]
[403039877,1769094683306,-500.0,0.00041643,60]
[403039878,1769094683316,-500.0,0.00041643,60]
[403039879,1769094683326,-151.0,0.00041643,120]
[403039880,1769094683336,-500.0,0.00041643,60]
[403039881,1769094683346,-151.0,0.00041643,120]
[403039882,1769094683356,-500.0,0.00041643,60]
[403039883,1769094683366,-500.0,0.00041643,60]
[403039884,1769094683376,-500.0,0.00041643,60]
[403039885,1769094683386,-572.54,0.00041643,60]
[403039886,1769094683395,-500.0,0.00041643,14]
[403039887,1769094683406,-500.0,0.00041643,60]
[403039888,1769094683416,-500.0,0.00041643,60]
[403039889,1769094683426,-500.0,0.00041643,60]
[403039890,1769094683436,-414.10376014,0.00041643,60]
[403039891,1769094683446,-500.0,0.00041643,60]
[403039892,1769094683456,-1253.012666,0.00041643,120]
[403039893,1769094683467,-500.0,0.00041643,60]
[403039894,1769094683477,-500.0,0.00041643,60]
[403039895,1769094683488,-897.984424,0.00041643,120]
[403039896,1769094683498,-300.0,0.00041643,2]
[403039897,1769094683508,-1253.012666,0.00041643,120]
[403039898,1769094683519,-897.984424,0.00041643,120]
[403039899,1769094683529,-500.0,0.00041643,60]
[403039900,1769094683540,-500.0,0.00041643,2]
[403039901,1769094683550,-897.984424,0.00041643,120]
[403039902,1769094683560,-1253.012666,0.00041643,120]
[403039903,1769094683570,-500.0,0.00041643,60]
[403039904,1769094683581,-347.4188014,0.00041643,60]
[403039905,1769094683591,-897.984424,0.00041643,120]
[403039906,1769094683601,-500.0,0.00041643,60]
[403039907,1769094683610,-500.0,0.00041643,60]
[403039908,1769094683621,-1253.012666,0.00041643,120]
[403039909,1769094683631,-500.0,0.00041643,60]
[403039910,1769094683642,-500.0,0.00041643,60]
[403039911,1769094683652,-553.94,0.00041643,60]
[403039912,1769094683662,-570.16,0.00041643,60]
[403039913,1769094683672,-500.0,0.00041643,60]
[403039914,1769094683682,-500.0,0.00041643,60]
[403039915,1769094683692,-500.0,0.00041643,60]
[403039916,1769094683702,-507.83,0.00041643,60]
[403039917,1769094683712,-516.75,0.00041643,60]
[403039918,1769094683722,-504.72072076,0.00041643,16]
[403039919,1769094683732,-500.0,0.00041643,60]
[403039920,1769094683742,-618.62,0.00041643,60]
[403039921,1769094683753,-500.0,0.00041643,60]
[403039922,1769094683763,-555.08,0.00041643,60]
[403039923,1769094683773,-500.0,0.00041643,60]
[403039924,1769094683783,-500.0,0.00041643,60]
[403039925,1769094683793,-534.9,0.00041643,60]
[403039926,1769094683803,-500.0,0.00041643,60]
[403039927,1769094683815,-576.1,0.00041643,60]
[403039928,1769094683826,-500.0,0.00041643,60]
[403039929,1769094683836,-500.0,0.00041643,60]
[403039930,1769094683846,-500.0,0.00041643,60]
[403039931,1769094683857,-500.0,0.00041643,60]
[403039932,1769094683867,-500.0,0.00041643,60]
[403039933,1769094683878,-500.0,0.00041643,60]
[403039934,1769094683892,-456.87128868,0.00041643,60]
[403039935,1769094683905,-500.0,0.00041643,60]
[403039936,1769094683915,-500.0,0.00041643,60]
[403039937,1769094683925,-500.0,0.00041643,60]
[403039938,1769094683937,-534.94,0.00041643,60]
[403039939,1769094683948,-500.0,0.00041643,60]
[403039940,1769094683959,-151.0,0.00041643,120]
[403039941,1769094683972,-500.0,0.00041643,60]
[403039942,1769094683984,-500.0,0.00041643,60]
[403039943,1769094683995,-500.0,0.00041643,60]
[403039944,1769094684006,-500.0,0.00041643,60]
[403039945,1769094684017,-151.0,0.00041643,120]
[403039946,1769094684028,-546.62,0.00041643,60]
[403039947,1769094684039,-151.0,0.00041643,120]
[403039948,1769094684051,-617.01,0.00041643,60]
[403039949,1769094684064,-500.0,0.00041643,60]
[403039950,1769094684076,-500.0,0.00041643,60]
[403039951,1769094684088,-500.0,0.00041643,60]
[403039952,1769094684099,-512.10790565,0.00041643,60]
[403039953,1769094684109,-151.0,0.00041643,120]
[403039954,1769094684120,-500.0,0.00041643,60]
[403039955,1769094684132,-151.0,0.00041643,120]
[403039956,1769094684143,-500.0,0.00041643,60]
[403039957,1769094684156,-151.0,0.00041643,120]
[403039958,1769094684168,-500.0,0.00041643,60]
[403039959,1769094684178,-670.85,0.00041643,60]
[403039960,1769094684189,-500.0,0.00041643,60]
[403039961,1769094684201,-500.0,0.00041643,60]
[403039962,1769094684211,-505.25142822,0.00041643,60]
[403039963,1769094684222,-500.0,0.00041643,60]
[403039964,1769094684233,-718.181799,0.00041643,120]
[403039965,1769094684244,-500.0,0.00041643,60]
[403039966,1769094684256,-718.181799,0.00041643,120]
[403039967,1769094684266,-545.78,0.00041643,60]
[403039968,1769094684277,-718.181799,0.00041643,120]
[403039969,1769094684288,-500.0,0.00041643,60]
[403039970,1769094684299,-500.0,0.00041643,60]
[403039971,1769094684309,-718.181799,0.00041643,120]
[403039972,1769094684322,-500.0,0.00041643,60]
[403039973,1769094684332,-500.0,0.00041643,60]
[403039974,1769094684342,-679.03915,0.00041643,120]
[403039975,1769094684353,-500.0,0.00041643,60]
[403039976,1769094684363,-500.0,0.00041643,60]
[403039977,1769094684373,-679.03915,0.00041643,120]
[403039978,1769094684383,-679.03915,0.00041643,120]
[403039979,1769094684393,-596.68,0.00041643,60]
[403039980,1769094684403,-500.0,0.00041643,60]
[403039981,1769094684413,-500.0,0.00041643,60]
[403039982,1769094684423,-679.03915,0.00041643,120]
[403039983,1769094684434,-579.91,0.00041643,60]
[403039984,1769094684444,-500.0,0.00041643,60]
[403039985,1769094684455,-2041.48,0.00041643,60]
[403039986,1769094684466,-537.45430598,0.00041643,60]
[403039987,1769094684476,-525.22,0.00041643,60]
[403039988,1769094684487,-500.0,0.00041643,60]
[403039989,1769094684497,-500.0,0.00041643,60]
[403039990,1769094684507,-500.0,0.00041643,60]
[403039991,1769094684517,-500.0,0.00041643,60]
[403039992,1769094684528,-500.0,0.00041643,60]
[403039993,1769094684538,-500.0,0.00041643,60]
[403039994,1769094684548,-500.0,0.00041643,60]
[403039995,1769094684558,-500.0,0.00041643,60]
[403039996,1769094684571,-500.0,0.00041643,60]
[403039997,1769094684582,-500.0,0.00041643,60]
[403039998,1769094684592,-500.0,0.00041643,60]
[403039999,1769094684604,-500.0,0.00041643,60]
[403040000,1769094684614,-500.0,0.00041643,60]
[403040001,1769094684625,-513.82,0.00041643,60]
[403040002,1769094684636,-500.0,0.00041643,60]
[403040003,1769094684647,-617.19,0.00041643,60]
[403040004,1769094684658,-500.0,0.00041643,60]
[403040005,1769094684668,-500.0,0.00041643,60]
[403040006,1769094684679,-500.0,0.00041643,60]
[403040007,1769094684689,-474.18899367,0.00041643,60]
[403040008,1769094684701,-500.0,0.00041643,2]
[403040009,1769094684711,-500.0,0.00041643,60]
[403040010,1769094684722,-500.0,0.00041643,60]
[403040011,1769094684732,-500.0,0.00041643,60]
[403040012,1769094684742,-500.0,0.00041643,60]
[403040013,1769094684752,-500.0,0.00041643,60]
[403040014,1769094684764,-1067.21,0.00041643,2]
[403040015,1769094684774,-500.0,0.00041643,60]
[403040016,1769094684784,-609.77,0.00041643,60]
[403040017,1769094684794,-500.0,0.00041643,60]
[403040018,1769094684806,-500.0,0.00041643,60]
[403040019,1769094684819,-500.0,0.00041643,60]
[403040020,1769094685099,-595.06,0.00041643,60]
[403040021,1769094685109,-500.0,0.00041643,60]
[403040022,1769094685119,-151.0,0.00041643,120]
[403040023,1769094685130,-500.0,0.00041643,60]
[403040024,1769094685140,-500.0,0.00041643,60]
[403040025,1769094685149,-151.0,0.00041643,120]
[403040026,1769094685160,-500.0,0.00041643,60]
[403040027,1769094685170,-531.39,0.00041643,60]
[403040028,1769094685180,-500.0,0.00041643,2]
[403040029,1769094685191,-151.0,0.00041643,120]
[403040030,1769094685201,-500.0,0.00041643,60]
[403040031,1769094685211,-353.85,0.00041643,2]
[403040032,1769094685221,-500.0,0.00041643,60]
[403040033,1769094685231,-500.0,0.00041643,60]
[403040034,1769094685242,-1031.37,0.00041643,2]
[403040035,1769094685252,-607.75,0.00041643,60]
[403040036,1769094685261,-500.0,0.00041643,60]
[403040037,1769094685271,-500.0,0.00041643,60]
[403040038,1769094685281,-600.81,0.00041643,60]
[403040039,1769094685291,-500.0,0.00041643,60]
[403040040,1769094685300,-500.0,0.00041643,60]
[403040041,1769094685310,-500.0,0.00041643,60]
[403040042,1769094685321,-500.0,0.00041643,60]
[403040043,1769094685331,-353.77031623,0.00041643,60]
[403040044,1769094685340,-500.0,0.00041643,60]
[403040045,1769094685350,-592.24,0.00041643,60]
[403040046,1769094685361,-553.74,0.00041643,60]
[403040047,1769094685370,-500.0,0.00041643,60]
[403040048,1769094685380,-500.0,0.00041643,60]
[403040049,1769094685389,-151.0,0.00041643,90]
[403040050,1769094685399,-151.0,0.00041643,120]
[403040051,1769094685409,-500.0,0.00041643,60]
[403040052,1769094685418,-151.0,0.00041643,120]
[403040053,1769094685428,-151.0,0.00041643,90]
[403040054,1769094685437,-297.381134,0.00041643,120]
[403040055,1769094685447,-296.586895,0.00041643,120]
[403040056,1769094685456,-500.0,0.00041643,60]
[403040057,1769094685466,-151.0,0.00041643,90]
[403040058,1769094685476,-162.5,0.00041643,120]
[403040059,1769094685485,-238.309351,0.00041643,120]
[403040060,1769094685495,-296.586895,0.00041643,120]
[403040061,1769094685504,-500.0,0.00041643,60]
[403040062,1769094685514,-500.0,0.00041643,60]
[403040063,1769094685523,-508.25051445,0.00041643,60]
[403040064,1769094685532,-162.5,0.00041643,120]
[403040065,1769094685542,-507.9,0.00041643,60]
[403040066,1769094685551,-151.0,0.00041643,120]
[403040067,1769094685560,-797.0,0.00041644,120]
[403040068,1769094685571,-500.0,0.00041692,120]
[403040069,1769094685581,-500.0,0.00041692,120]
[403040070,1769094685591,-500.0,0.00041692,120]
[403040071,1769094685600,-500.0,0.00041692,120]
[403040072,1769094685610,-500.0,0.00041692,120]
[403040073,1769094685619,-500.0,0.00041692,120]
[403040074,1769094685629,-396.9,0.00041692,120]
[403040075,1769094685639,-163.0,0.00041695,11]
[403040076,1769094685648,-151.0,0.000417,120]
[403040077,1769094685657,-28317.73,0.000417,30]
[403040078,1769094685667,-29793.30498371,0.000417,2]
[403040079,1769094686140,-800.0,0.000417,2]
[403040080,1769094686179,-441.64843355,0.00030205,2]
[403040081,1769094686191,-1911.15065018,0.00030205,2]
[403040082,1769094686202,-1760.25631723,0.00030205,2]
[403040083,1769094686696,-357.64,0.00030205,2]
[403040084,1769094687516,-357.30459904,0.00030205,2]
[403040085,1769094687527,-1170.64560086,0.00033205,2]
[403040086,1769094687627,-320.629391,0.00033205,2]
[403040087,1769094687639,-3336.72500814,0.00033205,2]
[403040088,1769094687649,-4828.0,0.00036205,2]
[403040089,1769094687659,-665.99708886,0.00039205,2]
[403040090,1769094687861,151.0,0.00017347,2]
[403040091,1769094688474,-571.238848,0.00039205,2]
[403040092,1769094688567,-1693.19277323,0.00039205,2]
[403040093,1769094688583,-1897.57128991,0.00039205,2]
[403040094,1769094688592,-468.25,0.00040384,2]
[403040095,1769094688601,-151.0,0.00041095,120]
[403040096,1769094688611,-500.0,0.00041095,60]
[403040097,1769094688621,-296.586895,0.00041095,120]
[403040098,1769094688630,-162.5,0.00041095,120]
[403040099,1769094688639,-151.0,0.00041095,120]
[403040100,1769094688648,-512.0,0.00041095,60]
[403040101,1769094688658,-162.5,0.000412,120]
[403040102,1769094688667,-164.322955,0.000412,120]
[403040103,1769094688677,-296.586895,0.000412,120]
[403040104,1769094688686,-162.5,0.000412,120]
[403040105,1769094688694,-151.0,0.000412,120]
[403040106,1769094688704,-500.0,0.00041369,60]
[403040107,1769094688713,-500.0,0.00041369,60]
[403040108,1769094688722,-296.586895,0.00041643,120]
[403040109,1769094688731,-500.0,0.00041643,60]
[403040110,1769094688740,-162.5,0.00041643,120]
[403040111,1769094688750,-500.0,0.00041643,60]
[403040112,1769094688758,-296.586895,0.00041643,120]
[403040113,1769094688768,-162.5,0.00041643,120]
[403040114,1769094688777,-122620.22501629,0.000417,2]
[403040115,1769094688787,-271.34358576,0.00041711,2]
[403040116,1769094688797,-2185.21057513,0.00041747,120]
[403040117,1769094688806,-1942.90524741,0.00041817,15]
[403040118,1769094688817,-27651.69504898,0.00041817,15]
[403040119,1769094688827,-500.0,0.0004189,60]
[403040120,1769094688836,-150.0,0.0004189,2]
[403040121,1769094688845,-41505.48684871,0.000419,90]
[403040122,1769094688855,-157.73379083,0.000419,120]
[403040123,1769094688864,-157.73379081,0.000419,120]
[403040124,1769094688873,-157.73379081,0.000419,120]
[403040125,1769094688882,-152.0,0.00041905,3]
[403040126,1769094688893,-422.31324799,0.00041916,7]
[403040127,1769094688905,-74578.13810111,0.00041917,30]
[403040128,1769094688914,-500.0,0.00041917,120]
[403040129,1769094688923,-1000.0,0.00041917,2]
[403040130,1769094688935,-500.0,0.00041917,60]
[403040131,1769094688945,-500.0,0.00041917,120]
[403040132,1769094688955,-500.0,0.00041917,60]
[403040133,1769094688964,-500.0,0.00041917,2]
[403040134,1769094688976,-500.0,0.00041917,60]
[403040135,1769094688985,-500.0,0.00041917,60]
[403040136,1769094688995,-500.0,0.00041917,60]
[403040137,1769094689004,-500.0,0.00041917,60]
[403040138,1769094689014,-500.0,0.00041917,60]
[403040139,1769094689024,-500.0,0.00041917,60]
[403040140,1769094689033,-500.0,0.00041917,60]
[403040141,1769094689043,-500.0,0.00041917,60]
[403040142,1769094689053,-173.870812,0.00041917,120]
[403040143,1769094689063,-500.0,0.00041917,60]
[403040144,1769094689073,-500.0,0.00041917,60]
[403040145,1769094689083,-500.0,0.00041917,60]
[403040146,1769094689092,-244.95,0.00041917,120]
[403040147,1769094689101,-500.0,0.00041917,60]
[403040148,1769094689111,-244.95,0.00041917,120]
[403040149,1769094689121,-500.0,0.00041917,60]
[403040150,1769094689130,-244.95,0.00041917,120]
[403040151,1769094689140,-154.55524937,0.00041917,120]
[403040152,1769094689151,-500.0,0.00041917,60]
[403040153,1769094689161,-244.95,0.00041917,120]
[403040154,1769094689170,-501.35,0.00041917,60]
[403040155,1769094689180,-156.362247,0.00041917,120]
[403040156,1769094689190,-155.894822,0.00041917,120]
[403040157,1769094689200,-551.5,0.00041917,60]
[403040158,1769094689210,-180.806476,0.00041917,120]
[403040159,1769094689223,-500.0,0.00041917,60]
[403040160,1769094689233,-500.0,0.00041917,60]
[403040161,1769094689243,-819.58,0.00041917,60]
[403040162,1769094689253,-500.0,0.00041917,60]
[403040163,1769094689262,-500.0,0.00041917,60]
[403040164,1769094689272,-500.0,0.00041917,60]
[403040165,1769094689282,-500.0,0.00041917,60]
[403040166,1769094689291,-500.0,0.00041917,60]
[403040167,1769094689300,-513.41591615,0.00041917,60]
[403040168,1769094689309,-500.0,0.00041917,60]
[403040169,1769094689320,-500.0,0.00041917,60]
[403040170,1769094689329,-500.0,0.00041917,60]
[403040171,1769094689338,-500.0,0.00041917,60]
[403040172,1769094689347,-500.0,0.00041917,60]
[403040173,1769094689356,-500.0,0.00041917,60]
[403040174,1769094689366,-151.0,0.00041917,120]
[403040175,1769094689376,-500.0,0.00041917,60]
[403040176,1769094689386,-500.0,0.00041917,60]
[403040177,1769094689396,-500.0,0.00041917,60]
[403040178,1769094689405,-500.0,0.00041917,60]
[403040179,1769094689416,-151.930096,0.00041917,120]
[403040180,1769094689425,-500.0,0.00041917,60]
[403040181,1769094689435,-500.0,0.00041917,60]
[403040182,1769094689445,-500.0,0.00041917,60]
[403040183,1769094689455,-517.97607347,0.00041917,60]
[403040184,1769094689464,-151.0,0.00041917,10]
[403040185,1769094689473,-500.0,0.00041917,60]
[403040186,1769094689483,-500.0,0.00041917,60]
[403040187,1769094689492,-151.0,0.00041917,10]
[403040188,1769094689501,-500.0,0.00041917,60]
[403040189,1769094689511,-509.01305099,0.00041917,60]
[403040190,1769094689521,-500.0,0.00041917,60]
[403040191,1769094689530,-500.0,0.00041917,60]
[403040192,1769094689539,-500.0,0.00041917,60]
[403040193,1769094689550,-500.0,0.00041917,60]
[403040194,1769094689559,-417.80673175,0.00041917,60]
[403040195,1769094689570,-500.0,0.00041917,60]
[403040196,1769094689579,-500.0,0.00041917,60]
[403040197,1769094689589,-500.0,0.00041917,60]
[403040198,1769094689598,-500.0,0.00041917,60]
[403040199,1769094689608,-151.0,0.00041917,120]
[403040200,1769094689618,-500.0,0.00041917,60]
[403040201,1769094689629,-510.27713711,0.00041917,60]
[403040202,1769094689639,-533.2,0.00041917,60]
[403040203,1769094689648,-500.0,0.00041917,60]
[403040204,1769094689657,-500.0,0.00041917,60]
[403040205,1769094689666,-500.0,0.00041917,60]
[403040206,1769094689676,-500.0,0.00041917,60]
[403040207,1769094689685,-500.0,0.00041917,60]
[403040208,1769094689695,-707.15,0.00041917,60]
[403040209,1769094689704,-500.0,0.00041917,60]
[403040210,1769094689714,-500.0,0.00041917,60]
[403040211,1769094689725,-500.0,0.00041917,60]
[403040212,1769094689734,-500.0,0.00041917,60]
[403040213,1769094689744,-500.0,0.00041917,60]
[403040214,1769094689753,-500.0,0.00041917,60]
[403040215,1769094689763,-500.0,0.00041917,60]
[403040216,1769094689772,-500.0,0.00041917,60]
[403040217,1769094689782,-500.0,0.00041917,60]
[403040218,1769094689792,-500.0,0.00041917,60]
[403040219,1769094689802,-500.0,0.00041917,60]
[403040220,1769094689811,-395.24259089,0.00041917,60]
[403040221,1769094689825,-500.0,0.00041917,60]
[403040222,1769094689835,-500.0,0.00041917,60]
[403040223,1769094689845,-500.0,0.00041917,60]
[403040224,1769094689854,-500.0,0.00041917,60]
[403040225,1769094689864,-500.0,0.00041917,60]
[403040226,1769094689874,-500.0,0.00041917,60]
[403040227,1769094689884,-151.0,0.00041917,120]
[403040228,1769094689897,-539.52144523,0.00041917,60]
[403040229,1769094689906,-500.0,0.00041917,60]
[403040230,1769094689916,-500.0,0.00041917,60]
[403040231,1769094689927,-500.0,0.00041917,60]
[403040232,1769094689937,-500.0,0.00041917,60]
[403040233,1769094689947,-404.21390574,0.00041917,60]
[403040234,1769094689958,-151.0,0.00041917,120]
[403040235,1769094689969,-500.0,0.00041917,60]
[403040236,1769094689979,-500.0,0.00041917,60]
[403040237,1769094689989,-151.0,0.00041917,120]
[403040238,1769094690000,-500.0,0.00041917,60]
[403040239,1769094690010,-500.0,0.00041917,60]
[403040240,1769094690020,-500.0,0.00041917,60]
[403040241,1769094690030,-500.0,0.00041917,60]
[403040242,1769094690040,-500.0,0.00041917,60]
[403040243,1769094690050,-500.0,0.00041917,60]
[403040244,1769094690061,-500.0,0.00041917,60]
[403040245,1769094690073,-556.6,0.00041917,60]
[403040246,1769094690083,-500.0,0.00041917,60]
[403040247,1769094690093,-500.0,0.00041917,60]
[403040248,1769094690103,-500.0,0.00041917,60]
[403040249,1769094690113,-500.0,0.00041917,60]
[403040250,1769094690123,-603.34,0.00041917,60]
[403040251,1769094690133,-500.0,0.00041917,45]
[403040252,1769094690143,-500.0,0.00041917,60]
[403040253,1769094690152,-500.0,0.00041917,60]
[403040254,1769094690162,-500.0,0.00041917,60]
[403040255,1769094690172,-500.0,0.00041917,60]
[403040256,1769094690182,-500.0,0.00041917,60]
[403040257,1769094690192,-500.0,0.00041917,60]
[403040258,1769094690203,-583.08,0.00041917,60]
[403040259,1769094690213,-500.0,0.00041917,30]
[403040260,1769094690223,-500.0,0.00041917,60]
[403040261,1769094690233,-500.0,0.00041917,60]
[403040262,1769094690243,-500.0,0.00041917,60]
[403040263,1769094690253,-500.0,0.00041917,60]
[403040264,1769094690263,-500.0,0.00041917,60]
[403040265,1769094690273,-500.0,0.00041917,60]
[403040266,1769094690283,-500.0,0.00041917,60]
[403040267,1769094690292,-500.0,0.00041917,60]